fUST/lending_fUST_20250502
["ID","MTS","AMOUNT","RATE_DAILY","PERIOD"]
[359614180,1746184234152,-400.0,0.00019178,2]
[359614181,1746184234161,-400.0,0.00019178,2]
[359614182,1746184234171,-500.0,0.00019178,2]
[359614183,1746184234181,-514.54938576,0.00019178,2]
[359614184,1746184234191,-503.18471483,0.00019178,2]
[359614185,1746184234202,-400.0,0.00019178,2]
[359614186,1746184234212,-501.33525781,0.00019178,2]
[359614187,1746184234222,-400.0,0.00019178,2]
[359614188,1746184234232,-1385.58,0.00019178,2]
[359614189,1746184234243,-400.0,0.00019178,2]
[359614190,1746184234253,-400.0,0.00019178,2]
[359614191,1746184234263,-500.0,0.00019178,2]
[359614192,1746184234274,-400.0,0.00019178,2]
[359614193,1746184234284,-433.96,0.00019178,2]
[359614194,1746184234295,-400.0,0.00019178,2]
[359614195,1746184234304,-500.0,0.00019178,2]
[359614196,1746184234315,-503.95944969,0.00019178,2]
[359614197,1746184234325,-505.84164614,0.00019178,2]
[359614198,1746184234334,-400.0,0.00019178,2]
[359614199,1746184234343,-537.09844462,0.00019178,2]
[359614200,1746184234353,-400.0,0.00019178,2]
[359614201,1746184234363,-400.0,0.00019178,2]
[359614202,1746184234373,-517.0842597,0.00019178,2]
[359614203,1746184234384,-400.0,0.00019178,2]
[359614204,1746184234394,-400.0,0.00019178,2]
[359614205,1746184234404,-400.0,0.00019178,2]
[359614206,1746184234414,-507.15437626,0.00019178,2]
[359614207,1746184234424,-446.49,0.00019178,2]
[359614208,1746184234434,-1222.95,0.00019178,2]
[359614209,1746184234444,-434.52,0.00019178,2]
[359614210,1746184234454,-400.0,0.00019178,2]
[359614211,1746184234465,-514.38938862,0.00019178,2]
[359614212,1746184234474,-505.99172844,0.00019178,2]
[359614213,1746184234484,-504.6371495,0.00019178,2]
[359614214,1746184234494,-400.0,0.00019178,2]
[359614215,1746184234503,-400.0,0.00019178,2]
[359614216,1746184234514,-400.51,0.00019178,2]
[359614217,1746184234523,-400.0,0.00019178,2]
[359614218,1746184234533,-984.38,0.00019178,2]
[359614219,1746184234543,-400.0,0.00019178,2]
[359614220,1746184234553,-400.0,0.00019178,2]
[359614221,1746184234563,-502.09719696,0.00019178,2]
[359614222,1746184234573,-500.0,0.00019178,2]
[359614223,1746184234583,-400.0,0.00019178,2]
[359614224,1746184234593,-400.90654351,0.00019178,2]
[359614225,1746184234603,-400.0,0.00019178,2]
[359614226,1746184234613,-400.0,0.00019178,2]
[359614227,1746184234623,-360.25379225,0.00019178,2]
[359614228,1746184234633,-400.0,0.00019178,2]
[359614229,1746184234643,-400.0,0.00019178,2]
[359614230,1746184234653,-504.87173461,0.00019178,2]
[359614231,1746184234663,-1713.1,0.00019178,2]
[359614232,1746184234673,-523.79,0.00019178,2]
[359614233,1746184234684,-400.0,0.00019178,2]
[359614234,1746184234694,-774.5,0.00019178,2]
[359614235,1746184234704,-500.0,0.00019178,2]
[359614236,1746184234714,-791.83,0.00019178,2]
[359614237,1746184234723,-400.0,0.00019178,2]
[359614238,1746184234733,-525.73676621,0.00019178,2]
[359614239,1746184234743,-500.0,0.00019178,2]
[359614240,1746184234753,-400.0,0.00019178,2]
[359614241,1746184234763,-400.0,0.00019178,2]
[359614242,1746184234773,-956.59,0.00019178,2]
[359614243,1746184234783,-400.0,0.00019178,2]
[359614244,1746184234793,-860.0,0.00019178,2]
[359614245,1746184234802,-501.12751759,0.00019178,2]
[359614246,1746184234812,-626.96,0.00019178,2]
[359614247,1746184234822,-364.98360763,0.00019178,2]
[359614248,1746184234831,-400.0,0.00019178,2]
[359614249,1746184234841,-400.0,0.00019178,2]
[359614250,1746184234851,-500.0,0.00019178,2]
[359614251,1746184234860,-400.0,0.00019178,2]
[359614252,1746184234870,-400.0,0.00019178,2]
[359614253,1746184234880,-400.0,0.00019178,2]
[359614254,1746184234890,-400.0,0.00019178,2]
[359614255,1746184234899,-534.36,0.00019178,2]
[359614256,1746184234909,-400.0,0.00019178,2]
[359614257,1746184234918,-400.0,0.00019178,2]
[359614258,1746184234928,-603.48,0.00019178,2]
[359614259,1746184234938,-769.32,0.00019178,2]
[359614260,1746184234948,-973.23,0.00019178,2]
[359614261,1746184234958,-1184.75,0.00019178,2]
[359614262,1746184234967,-400.0,0.00019178,2]
[359614263,1746184234977,-502.19353299,0.00019178,2]
[359614264,1746184234987,-278.58480247,0.00019178,2]
[359614265,1746184234996,-502.64960554,0.00019178,2]
[359614266,1746184235006,-504.05101428,0.00019178,2]
[359614267,1746184235016,-400.0,0.00019178,2]
[359614268,1746184235026,-400.0,0.00019178,2]
[359614269,1746184235036,-400.0,0.00019178,2]
[359614270,1746184235046,-467.06583383,0.00019178,2]
[359614271,1746184235059,-232.62321408,0.00019178,2]
[359614272,1746184235068,-400.0,0.00019178,2]
[359614273,1746184235079,-400.0,0.00019178,2]
[359614274,1746184235088,-400.0,0.00019178,2]
[359614275,1746184235098,-400.0,0.00019178,2]
[359614276,1746184235108,-400.0,0.00019178,2]
[359614277,1746184235117,-400.0,0.00019178,2]
[359614278,1746184235127,-567.17,0.00019178,2]
[359614279,1746184235139,-400.0,0.00019178,2]
[359614280,1746184235148,-400.0,0.00019178,2]
[359614281,1746184235157,-400.0,0.00019178,2]
[359614282,1746184235167,-400.0,0.00019178,2]
[359614283,1746184235176,-713.33,0.00019178,2]
[359614284,1746184235187,-586.71,0.00019178,2]
[359614285,1746184235196,-400.0,0.00019178,2]
[359614286,1746184235206,-400.0,0.00019178,2]
[359614287,1746184235216,-1353.72,0.00019178,2]
[359614288,1746184235226,-400.0,0.00019178,2]
[359614289,1746184235236,-400.0,0.00019178,2]
[359614290,1746184235245,-400.0,0.00019178,2]
[359614291,1746184235255,-400.0,0.00019178,2]
[359614292,1746184235265,-500.0,0.00019178,2]
[359614293,1746184235275,-400.0,0.00019178,2]
[359614294,1746184235285,-292.93338557,0.00019178,2]
[359614295,1746184235295,-406.5113466,0.00019178,2]
[359614296,1746184235304,-400.0,0.00019178,2]
[359614297,1746184235314,-329.95767972,0.00019178,2]
[359614298,1746184235324,-400.0,0.00019178,2]
[359614299,1746184235334,-503.02,0.00019178,2]
[359614300,1746184235343,-626.94,0.00019178,2]
[359614301,1746184235353,-500.0,0.00019178,2]
[359614302,1746184235362,-461.98,0.00019178,2]
[359614303,1746184235372,-596.38,0.00019178,2]
[359614304,1746184235381,-1731.91,0.00019178,2]
[359614305,1746184235391,-400.0,0.00019178,2]
[359614306,1746184235402,-400.0,0.00019178,2]
[359614307,1746184235412,-400.0,0.00019178,2]
[359614308,1746184235422,-400.0,0.00019178,2]
[359614309,1746184235432,-400.0,0.00019178,2]
[359614310,1746184235443,-400.0,0.00019178,2]
[359614311,1746184235453,-555.75,0.00019178,2]
[359614312,1746184235463,-400.0,0.00019178,2]
[359614313,1746184235473,-400.0,0.00019178,2]
[359614314,1746184235483,-400.0,0.00019178,2]
[359614315,1746184235493,-400.0,0.00019178,2]
[359614316,1746184235502,-1018.94,0.00019178,2]
[359614317,1746184235513,-400.0,0.00019178,2]
[359614318,1746184235523,-400.0,0.00019178,2]
[359614319,1746184235534,-505.39358717,0.00019178,2]
[359614320,1746184235544,-400.0,0.00019178,2]
[359614321,1746184235554,-1054.54,0.00019178,2]
[359614322,1746184235563,-2914.23,0.00019178,2]
[359614323,1746184235573,-666.02,0.00019178,2]
[359614324,1746184235583,-400.0,0.00019178,2]
[359614325,1746184235593,-400.0,0.00019178,2]
[359614326,1746184235603,-400.0,0.00019178,2]
[359614327,1746184235613,-400.0,0.00019178,2]
[359614328,1746184235623,-400.0,0.00019178,2]
[359614329,1746184235632,-400.0,0.00019178,2]
[359614330,1746184235642,-400.0,0.00019178,2]
[359614331,1746184235652,-400.0,0.00019178,2]
[359614332,1746184235662,-400.0,0.00019178,2]
[359614333,1746184235672,-400.0,0.00019178,2]
[359614334,1746184235682,-400.0,0.00019178,2]
[359614335,1746184235694,-400.0,0.00019178,2]
[359614336,1746184235703,-400.0,0.00019178,2]
[359614337,1746184235713,-654.36,0.00019178,2]
[359614338,1746184235722,-400.0,0.00019178,2]
[359614339,1746184235733,-400.0,0.00019178,2]
[359614340,1746184235742,-800.05,0.00019178,2]
[359614341,1746184235752,-400.0,0.00019178,2]
[359614342,1746184235762,-1784.53,0.00019178,2]
[359614343,1746184235772,-400.0,0.00019178,2]
[359614344,1746184235782,-400.0,0.00019178,2]
[359614345,1746184235792,-7962.89,0.00019178,2]
[359614346,1746184235801,-400.0,0.00019178,2]
[359614347,1746184235811,-5862.8,0.00019178,2]
[359614348,1746184235820,-734.87,0.00019178,2]
[359614349,1746184235830,-400.0,0.00019178,2]
[359614350,1746184235841,-632.52,0.00019178,2]
[359614351,1746184235851,-400.0,0.00019178,2]
[359614352,1746184235861,-406.1,0.00019178,2]
[359614353,1746184235871,-400.0,0.00019178,2]
[359614354,1746184235881,-507.68043697,0.00019178,2]
[359614355,1746184235892,-405.37739261,0.00019178,2]
[359614356,1746184235902,-400.0,0.00019178,2]
[359614357,1746184235912,-400.0,0.00019178,2]
[359614358,1746184235922,-675.15,0.00019178,2]
[359614359,1746184235932,-2870.89,0.00019178,2]
[359614360,1746184235944,-606.4,0.00019178,2]
[359614361,1746184235954,-400.0,0.00019178,2]
[359614362,1746184235964,-1896.4,0.00019178,2]
[359614363,1746184235975,-400.0,0.00019178,2]
[359614364,1746184235985,-1048.02,0.00019178,2]
[359614365,1746184235995,-785.84,0.00019178,2]
[359614366,1746184236005,-400.0,0.00019178,2]
[359614367,1746184236015,-400.0,0.00019178,2]
[359614368,1746184236026,-400.0,0.00019178,2]
[359614369,1746184236036,-728.04,0.00019178,2]
[359614370,1746184236046,-302.95824274,0.00019178,2]
[359614371,1746184236058,-506.32,0.00019178,2]
[359614372,1746184236070,-570.6,0.00019178,2]
[359614373,1746184236080,-400.0,0.00019178,2]
[359614374,1746184236090,-853.15,0.00019178,2]
[359614375,1746184236101,-1218.24,0.00019178,2]
[359614376,1746184236110,-782.8,0.00019178,2]
[359614377,1746184236120,-1824.54,0.00019178,2]
[359614378,1746184236130,-400.0,0.00019178,2]
[359614379,1746184236141,-400.0,0.00019178,2]
[359614380,1746184236150,-1054.58,0.00019178,2]
[359614381,1746184236160,-500.0,0.00019178,2]
[359614382,1746184236170,-739.57,0.00019178,2]
[359614383,1746184236179,-400.0,0.00019178,2]
[359614384,1746184236190,-400.0,0.00019178,2]
[359614385,1746184236200,-445.66,0.00019178,2]
[359614386,1746184236210,-462.26,0.00019178,2]
[359614387,1746184236220,-6996.24,0.00019178,2]
[359614388,1746184236230,-2166.91,0.00019178,2]
[359614389,1746184236240,-400.0,0.00019178,2]
[359614390,1746184236249,-400.0,0.00019178,2]
[359614391,1746184236259,-423.63,0.00019178,2]
[359614392,1746184236269,-703.61,0.00019178,2]
[359614393,1746184236279,-408.94748255,0.00019178,2]
[359614394,1746184236291,-1868.07,0.00019178,2]
[359614395,1746184236300,-3236.91,0.00019178,2]
[359614396,1746184236310,-410.17135067,0.00019178,2]
[359614397,1746184236320,-400.0,0.00019178,2]
[359614398,1746184236331,-1204.65,0.00019178,2]
[359614399,1746184236340,-6019.61,0.00019178,2]
[359614400,1746184236350,-464.94,0.00019178,2]
[359614401,1746184236361,-1012.84,0.00019178,2]
[359614402,1746184236376,-400.0,0.00019178,2]
[359614403,1746184236387,-471.77,0.00019178,2]
[359614404,1746184236398,-530.09,0.00019178,2]
[359614405,1746184236409,-400.0,0.00019178,2]
[359614406,1746184236419,-400.0,0.00019178,2]
[359614407,1746184236428,-500.0,0.00019178,2]
[359614408,1746184236438,-400.0,0.00019178,2]
[359614409,1746184236448,-500.0,0.00019178,2]
[359614410,1746184236458,-1375.49,0.00019178,2]
[359614411,1746184236467,-415.68,0.00019178,2]
[359614412,1746184236477,-604.25,0.00019178,2]
[359614413,1746184236487,-3831.0,0.00019178,2]
[359614414,1746184236498,-500.0,0.00019178,2]
[359614415,1746184236508,-400.0,0.00019178,2]
[359614416,1746184236518,-400.0,0.00019178,2]
[359614417,1746184236528,-3021.63,0.00019178,2]
[359614418,1746184236538,-500.0,0.00019178,2]
[359614419,1746184236548,-400.0,0.00019178,2]
[359614420,1746184236558,-500.0,0.00019178,2]
[359614421,1746184236569,-1246.86,0.00019178,2]
[359614422,1746184236579,-426.87,0.00019178,2]
[359614423,1746184236588,-400.0,0.00019178,2]
[359614424,1746184236598,-400.0,0.00019178,2]
[359614425,1746184236608,-400.0,0.00019178,2]
[359614426,1746184236618,-396.58740917,0.00019178,2]
[359614427,1746184236628,-400.0,0.00019178,2]
[359614428,1746184236638,-532.99,0.00019178,2]
[359614429,1746184236648,-611.51,0.00019178,2]
[359614430,1746184236659,-400.0,0.00019178,2]
[359614431,1746184236669,-2834.76,0.00019178,2]
[359614432,1746184236679,-400.0,0.00019178,2]
[359614433,1746184236690,-400.0,0.00019178,2]
[359614434,1746184236703,-613.18,0.00019178,2]
[359614435,1746184236713,-637.63,0.00019178,2]
[359614436,1746184236723,-500.0,0.00019178,2]
[359614437,1746184236733,-400.0,0.00019178,2]
[359614438,1746184236743,-500.78548399,0.00019178,2]
[359614439,1746184236753,-400.0,0.00019178,2]
[359614440,1746184236763,-400.0,0.00019178,2]
[359614441,1746184236773,-400.0,0.00019178,2]
[359614442,1746184236783,-501.24933544,0.00019178,2]
[359614443,1746184236793,-501.36534384,0.00019178,2]
[359614444,1746184236803,-779.78,0.00019178,2]
[359614445,1746184236813,-1491.86,0.00019178,2]
[359614446,1746184236823,-400.0,0.00019178,2]
[359614447,1746184236834,-400.0,0.00019178,2]
[359614448,1746184236844,-400.0,0.00019178,2]
[359614449,1746184236854,-502.13602639,0.00019178,2]
[359614450,1746184236864,-400.0,0.00019178,2]
[359614451,1746184236874,-492.21,0.00019178,2]
[359614452,1746184236884,-400.0,0.00019178,2]
[359614453,1746184236894,-2876.47,0.00019178,2]
[359614454,1746184236904,-501.81940324,0.00019178,2]
[359614455,1746184236914,-400.0,0.00019178,2]
[359614456,1746184236925,-400.0,0.00019178,2]
[359614457,1746184236935,-400.0,0.00019178,2]
[359614458,1746184236945,-500.0,0.00019178,2]
[359614459,1746184236955,-825.66,0.00019178,2]
[359614460,1746184236966,-500.82955958,0.00019178,2]
[359614461,1746184236976,-400.0,0.00019178,2]
[359614462,1746184236986,-400.0,0.00019178,2]
[359614463,1746184236996,-757.59,0.00019178,2]
[359614464,1746184237006,-500.0,0.00019178,2]
[359614465,1746184237016,-400.0,0.00019178,2]
[359614466,1746184237026,-500.0,0.00019178,2]
[359614467,1746184237036,-3145.44,0.00019178,2]
[359614468,1746184237049,-400.0,0.00019178,2]
[359614469,1746184237061,-400.0,0.00019178,2]
[359614470,1746184237071,-400.0,0.00019178,2]
[359614471,1746184237082,-400.0,0.00019178,2]
[359614472,1746184237092,-500.0,0.00019178,2]
[359614473,1746184237103,-1030.01,0.00019178,2]
[359614474,1746184237114,-400.0,0.00019178,2]
[359614475,1746184237125,-400.0,0.00019178,2]
[359614476,1746184237138,-428.69,0.00019178,2]
[359614477,1746184237148,-400.0,0.00019178,2]
[359614478,1746184237158,-500.0,0.00019178,2]
[359614479,1746184237168,-1815.21,0.00019178,2]
[359614480,1746184237178,-400.0,0.00019178,2]
[359614481,1746184237188,-2574.75,0.00019178,2]
[359614482,1746184237198,-718.28,0.00019178,2]
[359614483,1746184237208,-400.0,0.00019178,2]
[359614484,1746184237218,-1749.64,0.00019178,2]
[359614485,1746184237228,-2760.77,0.00019178,2]
[359614486,1746184237239,-881.38,0.00019178,2]
[359614487,1746184237249,-400.0,0.00019178,2]
[359614488,1746184237259,-500.0,0.00019178,2]
[359614489,1746184237268,-3208.29,0.00019178,2]
[359614490,1746184237278,-400.0,0.00019178,2]
[359614491,1746184237288,-500.0,0.00019178,2]
[359614492,1746184237300,-527.07,0.00019178,2]
[359614493,1746184237310,-400.0,0.00019178,2]
[359614494,1746184237320,-516.69999714,0.00019178,2]
[359614495,1746184237330,-710.22,0.00019178,2]
[359614496,1746184237340,-400.0,0.00019178,2]
[359614497,1746184237350,-400.0,0.00019178,2]
[359614498,1746184237360,-400.0,0.00019178,2]
[359614499,1746184237370,-400.0,0.00019178,2]
[359614500,1746184237380,-400.0,0.00019178,2]
[359614502,1746184237390,-510.99726664,0.00019178,2]
[359614503,1746184237403,-400.0,0.00019178,2]
[359614504,1746184237413,-500.0,0.00019178,2]
[359614505,1746184237423,-400.0,0.00019178,2]
[359614506,1746184237432,-1648.52,0.00019178,2]
[359614507,1746184237443,-500.0,0.00019178,2]
[359614508,1746184237453,-400.0,0.00019178,2]
[359614509,1746184237463,-400.0,0.00019178,2]
[359614510,1746184237473,-1381.28,0.00019178,2]
[359614511,1746184237484,-500.0,0.00019178,2]
[359614513,1746184237495,-844.72,0.00019178,2]
[359614514,1746184237505,-512.79178381,0.00019178,2]
[359614515,1746184237515,-500.93420192,0.00019178,2]
[359614516,1746184237525,-405.88463922,0.00019178,2]
[359614517,1746184237536,-400.0,0.00019178,2]
[359614518,1746184237547,-400.0,0.00019178,2]
[359614519,1746184237558,-400.0,0.00019178,2]
[359614520,1746184237568,-500.64618019,0.00019178,2]
[359614521,1746184237578,-400.0,0.00019178,2]
[359614522,1746184237588,-400.0,0.00019178,2]
[359614524,1746184237598,-400.0,0.00019178,2]
[359614526,1746184237608,-400.0,0.00019178,2]
[359614528,1746184237618,-400.0,0.00019178,2]
[359614530,1746184237629,-812.81,0.00019178,2]
[359614532,1746184237639,-693.85,0.00019178,2]
[359614534,1746184237649,-2505.77,0.00019178,2]
[359614536,1746184237660,-500.0,0.00019178,2]
[359614539,1746184237670,-500.0,0.00019178,2]
[359614541,1746184237680,-410.33,0.00019178,2]
[359614543,1746184237691,-3272.29,0.00019178,2]
[359614545,1746184237701,-400.0,0.00019178,2]
[359614547,1746184237712,-500.0,0.00019178,2]
[359614549,1746184237722,-400.0,0.00019178,2]
[359614551,1746184237733,-400.0,0.00019178,2]
[359614554,1746184237747,-400.0,0.00019178,2]
[359614556,1746184237757,-1052.73,0.00019178,2]
[359614558,1746184237767,-922.96,0.00019178,2]
[359614560,1746184237778,-400.0,0.00019178,2]
[359614562,1746184237788,-578.52,0.00019178,2]
[359614564,1746184237799,-2046.76,0.00019178,2]
[359614586,1746184237809,-500.0,0.00019178,2]
[359614591,1746184238020,-998.34,0.00019178,2]
[359614594,1746184238031,-400.0,0.00019178,2]
[359614597,1746184238041,-718.8,0.00019178,2]
[359614600,1746184238051,-3335.98,0.00019178,2]
[359614603,1746184238064,-641.81,0.00019178,2]
[359614606,1746184238074,-500.0,0.00019178,2]
[359614608,1746184238084,-400.0,0.00019178,2]
[359614610,1746184238093,-400.0,0.00019178,2]
[359614612,1746184238103,-400.0,0.00019178,2]
[359614614,1746184238112,-400.0,0.00019178,2]
[359614616,1746184238122,-400.0,0.00019178,2]
[359614618,1746184238131,-400.0,0.00019178,2]
[359614620,1746184238140,-1245.26,0.00019178,2]
[359614622,1746184238151,-400.0,0.00019178,2]
[359614624,1746184238160,-2087.44,0.00019178,2]
[359614626,1746184238170,-498.56,0.00019178,2]
[359614628,1746184238180,-7798.8329773,0.00019178,2]
[359614661,1746184238482,-107.0970227,0.00019178,2]
[359614663,1746184238492,-400.0,0.00019178,2]
[359614665,1746184238501,-187.90802114,0.00019178,2]
[359614887,1746184243151,-212.09197886,0.00019178,2]
[359614888,1746184243161,-2701.4,0.00019178,2]
[359614889,1746184243170,-400.0,0.00019178,2]
[359614890,1746184243179,-500.0,0.00019178,2]
[359614891,1746184243189,-400.0,0.00019178,2]
[359614892,1746184243199,-400.0,0.00019178,2]
[359614893,1746184243210,-400.0,0.00019178,2]
[359614894,1746184243219,-400.0,0.00019178,2]
[359614895,1746184243229,-400.0,0.00019178,2]
[359614896,1746184243238,-400.0,0.00019178,2]
[359614897,1746184243247,-650.51,0.00019178,2]
[359614898,1746184243256,-1554.17,0.00019178,2]
[359614899,1746184243266,-400.0,0.00019178,2]
[359614900,1746184243275,-400.0,0.00019178,2]
[359614901,1746184243285,-400.0,0.00019178,2]
[359614902,1746184243295,-1066.94,0.00019178,2]
[359614903,1746184243304,-400.0,0.00019178,2]
[359614904,1746184243313,-709.65,0.00019178,2]
[359614905,1746184243323,-17534.97,0.00019178,2]
[359614906,1746184243331,-400.0,0.00019178,2]
[359614907,1746184243341,-688.91,0.00019178,2]
[359614908,1746184243350,-400.0,0.00019178,2]
[359614909,1746184243359,-635.04,0.00019178,2]
[359614910,1746184243368,-400.0,0.00019178,2]
[359614911,1746184243377,-400.0,0.00019178,2]
[359614912,1746184243387,-1535.22,0.00019178,2]
[359614913,1746184243397,-400.0,0.00019178,2]
[359614914,1746184243406,-400.0,0.00019178,2]
[359614915,1746184243416,-400.0,0.00019178,2]
[359614916,1746184243425,-543.74196645,0.00019178,2]
[359614917,1746184243435,-400.0,0.00019178,2]
[359614918,1746184243446,-1826.12,0.00019178,2]
[359614919,1746184243455,-400.0,0.00019178,2]
[359614920,1746184243465,-2316.08,0.00019178,2]
[359614921,1746184243475,-400.0,0.00019178,2]
[359614922,1746184243485,-500.49205003,0.00019178,2]
[359614923,1746184243494,-400.0,0.00019178,2]
[359614924,1746184243504,-753.09,0.00019178,2]
[359614925,1746184243514,-400.0,0.00019178,2]
[359614926,1746184243525,-657.69,0.00019178,2]
[359614927,1746184243535,-400.0,0.00019178,2]
[359614928,1746184243545,-1817.39,0.00019178,2]
[359614929,1746184243556,-400.0,0.00019178,2]
[359614930,1746184243566,-229.784102,0.00019178,2]
[359614931,1746184243576,-160.0,0.00019332,2]
[359614932,1746184243586,-160.0,0.00019332,2]
[359614933,1746184243596,-160.0,0.00019332,2]
[359614934,1746184243606,-160.0,0.00019332,2]
[359614935,1746184243616,-400.0,0.00019452,2]
[359614936,1746184243626,-400.0,0.00019452,2]
[359614937,1746184243635,-400.0,0.00019452,2]
[359614938,1746184243645,-400.0,0.00019452,2]
[359614939,1746184243655,-702.25,0.00019452,2]
[359614940,1746184243665,-400.0,0.00019452,2]
[359614941,1746184243674,-400.0,0.00019452,2]
[359614942,1746184243683,-400.0,0.00019452,2]
[359614943,1746184243693,-400.0,0.00019452,2]
[359614944,1746184243702,-400.0,0.00019452,2]
[359614945,1746184243712,-537.22,0.00019452,2]
[359614946,1746184243722,-400.0,0.00019452,2]
[359614947,1746184243731,-400.0,0.00019452,2]
[359614948,1746184243741,-500.0,0.00019452,2]
[359614949,1746184243751,-298.83409786,0.00019452,2]
[359614950,1746184243763,-400.0,0.00019452,2]
[359614951,1746184243772,-400.0,0.00019452,2]
[359614952,1746184243781,-400.0,0.00019452,2]
[359614953,1746184243791,-400.0,0.00019452,2]
[359614954,1746184243800,-400.0,0.00019452,2]
[359614955,1746184243810,-477.7,0.00019452,2]
[359614956,1746184243820,-475.05,0.00019452,2]
[359614957,1746184243830,-400.0,0.00019452,2]
[359614958,1746184243840,-400.0,0.00019452,2]
[359614959,1746184243849,-1367.75,0.00019452,2]
[359614960,1746184243859,-1100.21,0.00019452,2]
[359614961,1746184243869,-400.0,0.00019452,2]
[359614962,1746184243878,-528.83812434,0.00019452,2]
[359614963,1746184243888,-400.0,0.00019452,2]
[359614964,1746184243897,-400.0,0.00019452,2]
[359614965,1746184243907,-400.0,0.00019452,2]
[359614966,1746184243916,-1000.0,0.00019452,2]
[359614967,1746184243927,-343.41916908,0.00019452,2]
[359614968,1746184243936,-400.0,0.00019452,2]
[359614969,1746184243946,-400.0,0.00019452,2]
[359614970,1746184243955,-400.0,0.00019452,2]
[359614971,1746184243964,-400.0,0.00019452,2]
[359614972,1746184243974,-400.0,0.00019452,2]
[359614973,1746184243983,-452.22677527,0.00019452,2]
[359614974,1746184243992,-400.0,0.00019452,2]
[359614975,1746184244002,-400.0,0.00019452,2]
[359614976,1746184244011,-400.0,0.00019452,2]
[359614977,1746184244020,-400.0,0.00019452,2]
[359614978,1746184244030,-2226.55,0.00019452,2]
[359614979,1746184244039,-400.0,0.00019452,2]
[359614980,1746184244049,-461.28535207,0.00019452,2]
[359614981,1746184244061,-400.0,0.00019452,2]
[359614982,1746184244072,-400.0,0.00019452,2]
[359614983,1746184244082,-400.0,0.00019452,2]
[359614984,1746184244091,-400.0,0.00019452,2]
[359614985,1746184244101,-400.0,0.00019452,2]
[359614986,1746184244111,-400.0,0.00019452,2]
[359614987,1746184244121,-400.0,0.00019452,2]
[359614988,1746184244131,-400.0,0.00019452,2]
[359614989,1746184244141,-400.0,0.00019452,2]
[359614990,1746184244150,-674.29,0.00019452,2]
[359614991,1746184244160,-400.0,0.00019452,2]
[359614992,1746184244169,-400.0,0.00019452,2]
[359614993,1746184244178,-400.0,0.00019452,2]
[359614994,1746184244189,-400.0,0.00019452,2]
[359614995,1746184244199,-400.0,0.00019452,2]
[359614996,1746184244209,-400.0,0.00019452,2]
[359614997,1746184244220,-817.46,0.00019452,2]
[359614998,1746184244230,-400.0,0.00019452,2]
[359614999,1746184244240,-404.87489734,0.00019452,2]
[359615000,1746184244250,-400.0,0.00019452,2]
[359615001,1746184244259,-500.0,0.00019452,2]
[359615002,1746184244269,-307.35973532,0.00019452,2]
[359615003,1746184244279,-400.0,0.00019452,2]
[359615004,1746184244290,-1230.37,0.00019452,2]